fUSD/lending_fUSD_20260510
["ID","MTS","AMOUNT","RATE_DAILY","PERIOD"]
[421977731,1778398346000,-380.52932165,0.000106,2]
[421977732,1778398346000,-281.199998,0.000106,2]
[421977730,1778398346000,-27207.78442402,0.000106,2]
[421977733,1778398346000,-310.45661,0.000106,2]
[421977734,1778398346000,-10036.53722516,0.000106,2]
[421977739,1778398346000,-3121.30642487,0.000106,2]
[421977740,1778398346000,-3575.413935,0.000106,2]
[421977743,1778398346000,-1979.65645078,0.000106,2]
[421977738,1778398346000,-458.87313864,0.000106,2]
[421977742,1778398346000,-139381.17790649,0.000106,2]
[421977760,1778398346000,-503.81595093,0.00010673,2]
[421977756,1778398346000,-426.36809262,0.000106,2]
[421977771,1778398346000,-150.0,0.000108,2]
[421977798,1778398346000,-1000.0,0.000115,2]
[421977797,1778398346000,-150.0,0.00011486,2]
[421977791,1778398346000,-1352.0,0.00011347,2]
[421977789,1778398346000,-150.0,0.00011314,2]
[421977790,1778398346000,-3562.065,0.00011347,2]
[421977795,1778398346000,-62768.3544127,0.00011402,2]
[421977794,1778398346000,-150.0,0.000114,2]
[421977793,1778398346000,-150.0,0.00011389,2]
[421977796,1778398346000,-2006.56191888,0.00011478,2]
[421977792,1778398346000,-533.87915349,0.0001135,2]
[421977802,1778398346000,-1810.0,0.000117,2]
[421977799,1778398346000,-1680.0,0.00011549,2]
[421977801,1778398346000,-150.0,0.00011657,2]
[421977803,1778398346000,-2060.89744706,0.0001176,2]
[421977804,1778398346000,-150.0,0.00011829,2]
[421977806,1778398346000,-1102.0915,0.000119,2]
[421977805,1778398346000,-175.04,0.00011864,2]
[421977807,1778398346000,-184.47475161,0.000119,2]
[421977762,1778398346000,-150.0,0.000108,2]
[421977787,1778398346000,-150.0,0.00011186,2]
[421977786,1778398346000,-165.01,0.00011179,2]
[421977800,1778398346000,-1000.0,0.000116,2]
[421977780,1778398346000,-151.0,0.00011176,2]
[421977763,1778398346000,-150.0,0.000108,2]
[421977788,1778398346000,-547.00704242,0.00011227,2]
[421977765,1778398346000,-150.0,0.000108,2]
[421977766,1778398346000,-150.0,0.000108,2]
[421977769,1778398346000,-150.0,0.000108,2]
[421977768,1778398346000,-150.0,0.000108,2]
[421977767,1778398346000,-150.0,0.000108,2]
[421977774,1778398346000,-150.0,0.00010959,2]
[421977785,1778398346000,-219.01463362,0.00011176,2]
[421977764,1778398346000,-150.79014724,0.000108,2]
[421977777,1778398346000,-2006.56191893,0.00011099,2]
[421977784,1778398346000,-151.0,0.00011176,2]
[421977775,1778398346000,-150.0,0.00010971,2]
[421977773,1778398346000,-150.0,0.000108,2]
[421977779,1778398346000,-150.0,0.00011143,2]
[421977782,1778398346000,-151.0,0.00011176,2]
[421977781,1778398346000,-151.0,0.00011176,2]
[421977783,1778398346000,-151.0,0.00011176,2]
[421977776,1778398346000,-150.0,0.00010989,2]
[421977778,1778398346000,-2006.56191888,0.00011099,2]
[421977852,1778398347000,-165.01,0.00013024,2]
[421977853,1778398347000,-2808.06124531,0.00013025,2]
[421977846,1778398347000,-2000.0,0.000126,2]
[421977837,1778398347000,-1893.05998662,0.000125,2]
[421977847,1778398347000,-2351.0,0.00012704,2]
[421977844,1778398347000,-1893.05998662,0.00012527,2]
[421977842,1778398347000,-656.94028745,0.000125,2]
[421977839,1778398347000,-2541.37930253,0.000125,2]
[421977845,1778398347000,-1177.36491307,0.00012539,2]
[421977861,1778398347000,-1002.132,0.000135,2]
[421977843,1778398347000,-2585.7478172,0.0001251,2]
[421977841,1778398347000,-656.94028745,0.000125,2]
[421977851,1778398347000,-1306.9727938,0.00013008,2]
[421977857,1778398347000,-1893.05998662,0.00013194,2]
[421977860,1778398347000,-304.35,0.0001344,2]
[421977859,1778398347000,-2006.56191888,0.00013433,2]
[421977849,1778398347000,-2006.56191888,0.00012944,2]
[421977855,1778398347000,-1893.05998662,0.00013152,2]
[421977854,1778398347000,-2808.06124531,0.00013046,2]
[421977850,1778398347000,-2000.0,0.00013,2]
[421977856,1778398347000,-2808.06124531,0.00013179,2]
[421977863,1778398347000,-1522.65365517,0.00013658,2]
[421977874,1778398347000,-501.06,0.00013698,2]
[421977873,1778398347000,-501.06,0.00013698,2]
[421977864,1778398347000,-530.34692458,0.00013687,2]
[421977840,1778398347000,-2541.37930253,0.000125,2]
[421977858,1778398347000,-1723.23976251,0.00013207,2]
[421977848,1778398347000,-2000.0,0.000128,2]
[421977817,1778398347000,-150.0,0.00012,2]
[421977833,1778398347000,-1893.05998662,0.000125,2]
[421977811,1778398347000,-666.0,0.00011999,2]
[421977808,1778398347000,-2000.0,0.00011903,2]
[421977810,1778398347000,-300.0,0.00011999,2]
[421977809,1778398347000,-2006.56191888,0.00011967,2]
[421977814,1778398347000,-150.0,0.00012,2]
[421977812,1778398347000,-544346.10083241,0.00012,2]
[421977813,1778398347000,-150.0,0.00012,2]
[421977823,1778398347000,-5019.42,0.00012055,2]
[421977820,1778398347000,-150.0,0.00012,2]
[421977815,1778398347000,-62438.84371964,0.00012,2]
[421977816,1778398347000,-150.2553287,0.00012,2]
[421977819,1778398347000,-150.0,0.00012,2]
[421977818,1778398347000,-150.0,0.00012,2]
[421977822,1778398347000,-2000.0,0.00012,2]
[421977821,1778398347000,-150.0,0.00012,2]
[421977828,1778398347000,-2000.0,0.000124,2]
[421977826,1778398347000,-387.23,0.00012329,2]
[421977835,1778398347000,-1893.05998662,0.000125,2]
[421977836,1778398347000,-1893.05998662,0.000125,2]
[421977834,1778398347000,-1893.05998662,0.000125,2]
[421977831,1778398347000,-1893.05998662,0.000125,2]
[421977824,1778398347000,-304.35,0.00012096,2]
[421977827,1778398347000,-500.0,0.00012384,2]
[421977829,1778398347000,-2006.56191888,0.00012456,2]
[421977825,1778398347000,-2000.0,0.000122,2]
[421977830,1778398347000,-2808.06124531,0.000125,2]
[421977832,1778398347000,-1893.05998662,0.000125,2]
[421977838,1778398347000,-1177.36491307,0.000125,2]
[421977867,1778398347000,-500.0,0.00013698,2]
[421977869,1778398347000,-500.0,0.00013698,2]
[421977862,1778398347000,-150.0,0.00013553,2]
[421977904,1778398347000,-500.0,0.00013698,2]
[421977902,1778398347000,-500.0,0.00013698,2]
[421977903,1778398347000,-500.0,0.00013698,2]
[421977905,1778398347000,-500.0,0.00013698,2]
[421977907,1778398347000,-500.0,0.00013698,2]
[421977906,1778398347000,-500.0,0.00013698,2]
[421977909,1778398347000,-500.0,0.00013698,2]
[421977908,1778398347000,-219.32,0.00013698,2]
[421977914,1778398347000,-305.31572099,0.00013698,2]
[421977910,1778398347000,-500.0,0.00013698,2]
[421977912,1778398347000,-500.0,0.00013698,2]
[421977921,1778398347000,-522.11990106,0.00013699,2]
[421977911,1778398347000,-500.0,0.00013698,2]
[421977917,1778398347000,-2500.0,0.00013699,2]
[421977913,1778398347000,-500.0,0.00013698,2]
[421977918,1778398347000,-522.11990106,0.00013699,2]
[421977915,1778398347000,-166.66,0.00013699,2]
[421977916,1778398347000,-200.0,0.00013699,2]
[421977920,1778398347000,-522.11990106,0.00013699,2]
[421977919,1778398347000,-522.11990106,0.00013699,2]
[421977922,1778398347000,-522.11990106,0.00013699,2]
[421977923,1778398347000,-522.11990106,0.00013699,2]
[421977924,1778398347000,-522.11990106,0.00013699,2]
[421977927,1778398347000,-522.11990106,0.00013699,2]
[421977925,1778398347000,-522.11990106,0.00013699,2]
[421977926,1778398347000,-522.11990106,0.00013699,2]
[421977928,1778398347000,-522.11990106,0.00013699,2]
[421977901,1778398347000,-500.0,0.00013698,2]
[421977900,1778398347000,-500.0,0.00013698,2]
[421977871,1778398347000,-403.06441622,0.00013698,2]
[421977895,1778398347000,-500.0,0.00013698,2]
[421977899,1778398347000,-539.16316336,0.00013698,2]
[421977866,1778398347000,-500.0,0.00013698,2]
[421977870,1778398347000,-520.46694454,0.00013698,2]
[421977865,1778398347000,-500.0,0.00013698,2]
[421977868,1778398347000,-500.0,0.00013698,2]
[421977876,1778398347000,-501.06,0.00013698,2]
[421977886,1778398347000,-501.06,0.00013698,2]
[421977875,1778398347000,-501.06,0.00013698,2]
[421977882,1778398347000,-501.06,0.00013698,2]
[421977878,1778398347000,-501.06,0.00013698,2]
[421977879,1778398347000,-501.06,0.00013698,2]
[421977877,1778398347000,-501.06,0.00013698,2]
[421977880,1778398347000,-501.06,0.00013698,2]
[421977884,1778398347000,-501.06,0.00013698,2]
[421977872,1778398347000,-501.06,0.00013698,2]
[421977881,1778398347000,-501.06,0.00013698,2]
[421977885,1778398347000,-501.06,0.00013698,2]
[421977893,1778398347000,-500.0,0.00013698,2]
[421977891,1778398347000,-500.0,0.00013698,2]
[421977892,1778398347000,-500.0,0.00013698,2]
[421977889,1778398347000,-500.0,0.00013698,2]
[421977890,1778398347000,-500.0,0.00013698,2]
[421977894,1778398347000,-500.0,0.00013698,2]
[421977898,1778398347000,-500.0,0.00013698,2]
[421977897,1778398347000,-500.0,0.00013698,2]
[421977896,1778398347000,-500.0,0.00013698,2]
[421977888,1778398347000,-500.0,0.00013698,2]
[421977883,1778398347000,-501.06,0.00013698,2]
[421977887,1778398347000,-501.06,0.00013698,2]
[421977964,1778398348000,-522.11990106,0.00013699,2]
[421977966,1778398348000,-522.11990106,0.00013699,2]
[421977962,1778398348000,-522.11990106,0.00013699,2]
[421977960,1778398348000,-522.11990106,0.00013699,2]
[421977967,1778398348000,-522.11990106,0.00013699,2]
[421977958,1778398348000,-522.11990106,0.00013699,2]
[421977968,1778398348000,-522.11990106,0.00013699,2]
[421977961,1778398348000,-522.11990106,0.00013699,2]
[421977956,1778398348000,-522.11990106,0.00013699,2]
[421977959,1778398348000,-522.11990106,0.00013699,2]
[421977963,1778398348000,-522.11990106,0.00013699,2]
[421977974,1778398348000,-509.06690353,0.00013699,2]
[421977972,1778398348000,-509.06690353,0.00013699,2]
[421977980,1778398348000,-509.06690353,0.00013699,2]
[421977969,1778398348000,-522.11990106,0.00013699,2]
[421977971,1778398348000,-509.06690353,0.00013699,2]
[421977981,1778398348000,-509.06690353,0.00013699,2]
[421977973,1778398348000,-509.06690353,0.00013699,2]
[421977979,1778398348000,-509.06690353,0.00013699,2]
[421977975,1778398348000,-509.06690353,0.00013699,2]
[421977977,1778398348000,-509.06690353,0.00013699,2]
[421977978,1778398348000,-509.06690353,0.00013699,2]
[421977957,1778398348000,-522.11990106,0.00013699,2]
[421977970,1778398348000,-522.11990106,0.00013699,2]
[421977954,1778398348000,-522.11990106,0.00013699,2]
[421977934,1778398348000,-522.11990106,0.00013699,2]
[421977946,1778398348000,-522.11990106,0.00013699,2]
[421977931,1778398348000,-522.11990106,0.00013699,2]
[421977933,1778398348000,-522.11990106,0.00013699,2]
[421977932,1778398348000,-522.11990106,0.00013699,2]
[421977929,1778398348000,-522.11990106,0.00013699,2]
[421977930,1778398348000,-522.11990106,0.00013699,2]
[421977935,1778398348000,-522.11990106,0.00013699,2]
[421977945,1778398348000,-522.11990106,0.00013699,2]
[421977936,1778398348000,-522.11990106,0.00013699,2]
[421977937,1778398348000,-522.11990106,0.00013699,2]
[421977940,1778398348000,-522.11990106,0.00013699,2]
[421977941,1778398348000,-522.11990106,0.00013699,2]
[421977953,1778398348000,-522.11990106,0.00013699,2]
[421977976,1778398348000,-509.06690353,0.00013699,2]
[421977942,1778398348000,-522.11990106,0.00013699,2]
[421977943,1778398348000,-522.11990106,0.00013699,2]
[421977938,1778398348000,-522.11990106,0.00013699,2]
[421977944,1778398348000,-522.11990106,0.00013699,2]
[421977950,1778398348000,-522.11990106,0.00013699,2]
[421977949,1778398348000,-522.11990106,0.00013699,2]
[421977952,1778398348000,-522.11990106,0.00013699,2]
[421977948,1778398348000,-522.11990106,0.00013699,2]
[421977947,1778398348000,-522.11990106,0.00013699,2]
[421977951,1778398348000,-522.11990106,0.00013699,2]
[421977955,1778398348000,-522.11990106,0.00013699,2]
[421977939,1778398348000,-522.11990106,0.00013699,2]
[421977989,1778398348000,-509.06690353,0.00013699,2]
[421977965,1778398348000,-522.11990106,0.00013699,2]
[421977990,1778398348000,-509.06690353,0.00013699,2]
[421978011,1778398348000,-166.66,0.00013836,2]
[421978013,1778398348000,-166.66,0.00013973,2]
[421978016,1778398348000,-250.0,0.00014,2]
[421978008,1778398348000,-182.8380006,0.000137,2]
[421978018,1778398348000,-166.66,0.0001411,2]
[421978014,1778398348000,-2678.49316868,0.00013973,2]
[421978015,1778398348000,-3292.0,0.00013974,2]
[421978030,1778398348000,-501.06,0.00014999,2]
[421978026,1778398348000,-2006.56191888,0.000149,2]
[421978020,1778398348000,-150.0,0.00014309,2]
[421978025,1778398348000,-619.37,0.000148,2]
[421978023,1778398348000,-1002.14,0.000145,2]
[421978024,1778398348000,-304.35,0.00014784,2]
[421978027,1778398348000,-501.06,0.00014999,2]
[421978029,1778398348000,-501.06,0.00014999,2]
[421978022,1778398348000,-2006.56191888,0.00014411,2]
[421978028,1778398348000,-501.06,0.00014999,2]
[421978033,1778398348000,-501.06,0.00014999,2]
[421978037,1778398348000,-925437.94860234,0.00015,2]
[421978031,1778398348000,-501.06,0.00014999,2]
[421978032,1778398348000,-501.06,0.00014999,2]
[421978035,1778398348000,-300.0,0.00014999,2]
[421978034,1778398348000,-501.19857943,0.00014999,2]
[421978036,1778398348000,-666.0,0.00014999,2]
[421977994,1778398348000,-509.06690353,0.00013699,2]
[421978009,1778398348000,-1522.65365517,0.00013712,2]
[421978019,1778398348000,-166.66,0.00014247,2]
[421978021,1778398348000,-166.66,0.00014384,2]
[421978017,1778398348000,-150.0,0.00014024,2]
[421977982,1778398348000,-509.06690353,0.00013699,2]
[421978012,1778398348000,-2006.56191888,0.00013922,2]
[421977985,1778398348000,-509.06690353,0.00013699,2]
[421977992,1778398348000,-509.06690353,0.00013699,2]
[421977987,1778398348000,-509.06690353,0.00013699,2]
[421977983,1778398348000,-509.06690353,0.00013699,2]
[421977986,1778398348000,-509.06690353,0.00013699,2]
[421977988,1778398348000,-509.06690353,0.00013699,2]
[421977984,1778398348000,-509.06690353,0.00013699,2]
[421977991,1778398348000,-509.06690353,0.00013699,2]
[421978006,1778398348000,-509.0669035,0.00013699,2]
[421978004,1778398348000,-509.06690353,0.00013699,2]
[421978002,1778398348000,-509.06690353,0.00013699,2]
[421977993,1778398348000,-509.06690353,0.00013699,2]
[421978001,1778398348000,-509.06690353,0.00013699,2]
[421978005,1778398348000,-509.06690353,0.00013699,2]
[421977995,1778398348000,-509.06690353,0.00013699,2]
[421978010,1778398348000,-1522.65365517,0.00013788,2]
[421977996,1778398348000,-509.06690353,0.00013699,2]
[421977997,1778398348000,-509.06690353,0.00013699,2]
[421977998,1778398348000,-509.06690353,0.00013699,2]
[421978007,1778398348000,-1124.83,0.000137,2]
[421977999,1778398348000,-509.06690353,0.00013699,2]
[421978000,1778398348000,-509.06690353,0.00013699,2]
[421978003,1778398348000,-509.06690353,0.00013699,2]
[421978070,1778398349000,-1771.23864201,0.00016099,2]
[421978080,1778398349000,-506.79338516,0.00016438,2]
[421978076,1778398349000,-276.73023114,0.00016438,2]
[421978075,1778398349000,-185.0,0.00016438,2]
[421978074,1778398349000,-5029.43745912,0.0001627,2]
[421978071,1778398349000,-304.35,0.00016128,2]
[421978078,1778398349000,-500.0,0.00016438,2]
[421978072,1778398349000,-1771.23864201,0.00016152,2]
[421978069,1778398349000,-300.0,0.00016,2]
[421978092,1778398349000,-350.0,0.00018,2]
[421978073,1778398349000,-1771.23864201,0.00016179,2]
[421978079,1778398349000,-500.0,0.00016438,2]
[421978082,1778398349000,-500.0,0.00016438,2]
[421978103,1778398349000,-383.190934,0.0002,10]
[421978083,1778398349000,-387.23,0.00016767,2]
[421978090,1778398349000,-198.26,0.00017809,2]
[421978081,1778398349000,-500.0,0.00016438,2]
[421978086,1778398349000,-1000.0,0.00016986,2]
[421978093,1778398349000,-167.8131983,0.00018314,2]
[421978084,1778398349000,-1002.4221804,0.00016986,2]
[421978089,1778398349000,-453.74805,0.00017808,2]
[421978085,1778398349000,-152.28289942,0.00016986,2]
[421978087,1778398349000,-1001.19349968,0.00016986,2]
[421978088,1778398349000,-403.0,0.000177,5]
[421978095,1778398349000,-19065.45186916,0.00019,2]
[421978077,1778398349000,-453.0,0.00016438,2]
[421978096,1778398349000,-4989.54123953,0.000199,3]
[421978091,1778398349000,-1124.83,0.000179,2]
[421978064,1778398349000,-1771.23864201,0.00015914,2]
[421978040,1778398349000,-1898021.97378718,0.00015,2]
[421978062,1778398349000,-1771.23864201,0.00015877,2]
[421978105,1778398349000,-1052.0,0.0002,2]
[421978043,1778398349000,-999.99,0.0001531,2]
[421978038,1778398349000,-232.0,0.00015,2]
[421978039,1778398349000,-341485.46901213,0.00015,2]
[421978042,1778398349000,-13412.97,0.0001531,2]
[421978041,1778398349000,-1500.0,0.00015,2]
[421978044,1778398349000,-150.99,0.0001531,2]
[421978048,1778398349000,-407.29338682,0.000155,2]
[421978052,1778398349000,-2245.5561517,0.00015674,2]
[421978055,1778398349000,-1022.96656089,0.00015708,2]
[421978053,1778398349000,-2245.5561517,0.00015693,2]
[421978049,1778398349000,-823.23873023,0.000155,2]
[421978047,1778398349000,-2245.5561517,0.00015496,2]
[421978061,1778398349000,-1022.96656089,0.0001587,2]
[421978051,1778398349000,-354.12,0.000156,2]
[421978045,1778398349000,-9999.99,0.0001531,2]
[421978050,1778398349000,-1124.83,0.000155,2]
[421978054,1778398349000,-2245.5561517,0.00015702,2]
[421978057,1778398349000,-2245.5561517,0.00015726,2]
[421978068,1778398349000,-8964.66567605,0.00015989,2]
[421978067,1778398349000,-1022.96656089,0.00015952,2]
[421978056,1778398349000,-2245.5561517,0.00015726,2]
[421978066,1778398349000,-1022.96656089,0.00015933,2]
[421978058,1778398349000,-198.25,0.00015754,2]
[421978065,1778398349000,-1771.23864201,0.00015922,2]
[421978060,1778398349000,-1022.96656089,0.00015791,2]
[421978063,1778398349000,-1771.23864201,0.00015914,2]
[421978059,1778398349000,-1022.96656089,0.00015756,2]
[421978046,1778398349000,-930.0,0.00015372,2]
[421978094,1778398349000,-166.16885049,0.00019,2]
[421978122,1778398349000,-654.6,0.00022466,2]
[421978104,1778398349000,-948.0,0.0002,2]
[421978140,1778398349000,-288.0,0.00024658,2]
[421978143,1778398349000,-1000.0,0.00024658,2]
[421978139,1778398349000,-192.34768075,0.00024658,2]
[421978134,1778398349000,-550.0,0.00024,2]
[421978137,1778398349000,-2060.89744706,0.00024249,2]
[421978138,1778398349000,-652.0,0.00024658,2]
[421978132,1778398349000,-4728.1107434,0.00023917,2]
[421978135,1778398349000,-250.73,0.00024174,2]
[421978136,1778398349000,-1491.64,0.00024174,2]
[421978141,1778398349000,-284.06087638,0.00024658,2]
[421978142,1778398349000,-152.0,0.00024658,2]
[421978155,1778398349000,-216.26,0.00025811,7]
[421978156,1778398349000,-10111.30136944,0.00026,2]
[421978145,1778398349000,-216.26,0.00024658,2]
[421978144,1778398349000,-424.03,0.00024658,2]
[421978146,1778398349000,-247.86,0.00024658,2]
[421978154,1778398349000,-424.03,0.00025811,7]
[421978147,1778398349000,-158.59,0.00024658,2]
[421978150,1778398349000,-562.85019284,0.00025,2]
[421978152,1778398349000,-1491.64,0.00025786,2]
[421978148,1778398349000,-1124.83,0.000247,7]
[421978149,1778398349000,-236.47016667,0.00025,2]
[421978153,1778398349000,-151.0,0.000258,2]
[421978160,1778398349000,-150.0,0.00026849,2]
[421978157,1778398349000,-167.8131983,0.00026129,2]
[421978158,1778398349000,-232.2,0.000265,14]
[421978101,1778398349000,-227.0,0.0002,2]
[421978133,1778398349000,-227.0,0.00024,2]
[421978127,1778398349000,-470.05025454,0.00023,2]
[421978151,1778398349000,-3125.0523524,0.00025487,2]
[421978126,1778398349000,-14005.5129723,0.00022917,2]
[421978097,1778398349000,-2983.70950196,0.0002,7]
[421978128,1778398349000,-227.0,0.00023,2]
[421978099,1778398349000,-597.0,0.0002,2]
[421978102,1778398349000,-550.0,0.0002,2]
[421978100,1778398349000,-400.0,0.0002,2]
[421978107,1778398349000,-591.19,0.00020548,2]
[421978110,1778398349000,-227.0,0.00021,2]
[421978117,1778398349000,-5000.0,0.00021918,2]
[421978109,1778398349000,-1228.98093343,0.00021,7]
[421978106,1778398349000,-527.46560597,0.0002012,2]
[421978118,1778398349000,-221.73780782,0.00021918,2]
[421978108,1778398349000,-198.25,0.00020548,2]
[421978113,1778398349000,-762.47,0.00021273,2]
[421978112,1778398349000,-1086.86,0.00021273,2]
[421978098,1778398349000,-537.21649275,0.0002,7]
[421978114,1778398349000,-1124.83,0.000214,2]
[421978116,1778398349000,-21189.9222423,0.00021506,2]
[421978130,1778398349000,-151.0,0.000235,2]
[421978120,1778398349000,-227.0,0.00022,2]
[421978129,1778398349000,-550.0,0.00023,2]
[421978124,1778398349000,-1086.86,0.00022691,2]
[421978121,1778398349000,-550.0,0.00022,2]
[421978125,1778398349000,-150.45087984,0.00022774,21]
[421978123,1778398349000,-250.73,0.00022691,2]
[421978159,1778398349000,-1124.83,0.000266,7]
[421978119,1778398349000,-1122.70591413,0.00022,4]
[421978111,1778398349000,-550.0,0.00021,2]
[421978115,1778398349000,-850.4884337,0.00021506,2]
[421978131,1778398349000,-189.7696204,0.00023917,2]
[421978186,1778398350000,-200.0,0.00027923,2]
[421978191,1778398350000,-227.0,0.00027923,2]
[421978187,1778398350000,-200.0,0.00027923,2]
[421978181,1778398350000,-500.0,0.000278,7]
[421978190,1778398350000,-200.0,0.00027923,2]
[421978188,1778398350000,-200.0,0.00027923,2]
[421978189,1778398350000,-200.0,0.00027923,2]
[421978185,1778398350000,-200.0,0.00027923,2]
[421978205,1778398350000,-216.26,0.00029272,7]
[421978196,1778398350000,-160.17,0.000284,7]
[421978194,1778398350000,-150.0,0.00028192,2]
[421978195,1778398350000,-49756.13,0.000283,7]
[421978204,1778398350000,-152.0,0.0002911,3]
[421978197,1778398350000,-151.76,0.00028422,2]
[421978199,1778398350000,-1124.83,0.000286,7]
[421978198,1778398350000,-808.83,0.000286,14]
[421978200,1778398350000,-158.59,0.00028609,2]
[421978184,1778398350000,-200.0,0.00027923,2]
[421978202,1778398350000,-500.0,0.00028741,6]
[421978193,1778398350000,-216.26,0.00028118,2]
[421978192,1778398350000,-151.18,0.00028,2]
[421978167,1778398350000,-300.0,0.00027397,2]
[421978180,1778398350000,-622.4261014,0.00027671,2]
[421978201,1778398350000,-1332.44947127,0.00028646,15]
[421978168,1778398350000,-2175.39,0.00027397,10]
[421978165,1778398350000,-1009.13,0.00027397,2]
[421978169,1778398350000,-1812.82,0.00027397,10]
[421978162,1778398350000,-151.0,0.000271,2]
[421978163,1778398350000,-151.0,0.00027397,2]
[421978161,1778398350000,-1000.387462,0.00027,2]
[421978166,1778398350000,-166.99499127,0.00027397,2]
[421978164,1778398350000,-158.59,0.00027397,7]
[421978183,1778398350000,-200.0,0.00027923,2]
[421978175,1778398350000,-160.17,0.000274,7]
[421978174,1778398350000,-176.28,0.000274,7]
[421978176,1778398350000,-622.4261014,0.00027489,2]
[421978177,1778398350000,-401.44,0.000275,2]
[421978178,1778398350000,-622.4261014,0.0002758,2]
[421978171,1778398350000,-14095.24,0.00027397,10]
[421978170,1778398350000,-1510.68,0.00027397,10]
[421978179,1778398350000,-373.45566084,0.00027671,2]
[421978172,1778398350000,-808.83,0.000274,14]
[421978182,1778398350000,-500.0,0.00027872,5]
[421978173,1778398350000,-49756.13,0.000274,7]
[421978203,1778398350000,-410.13,0.000291,2]
[421978236,1778398350000,-150.0,0.000298,7]
[421978217,1778398350000,-49756.13,0.000294,7]
[421978232,1778398350000,-150.0,0.000298,7]
[421978235,1778398350000,-150.0,0.000298,7]
[421978234,1778398350000,-150.0,0.000298,7]
[421978243,1778398350000,-187432.91292702,0.0003,2]
[421978233,1778398350000,-150.0,0.000298,7]
[421978238,1778398350000,-173.0,0.000298,7]
[421978237,1778398350000,-150.0,0.000298,7]
[421978241,1778398350000,-87877.0,0.0003,2]
[421978240,1778398350000,-1557.7052676,0.0003,2]
[421978215,1778398350000,-500.0,0.0002937,2]
[421978244,1778398350000,-152.43164517,0.0003,5]
[421978239,1778398350000,-165.23,0.00029829,2]
[421978246,1778398350000,-270.0,0.0003,7]
[421978245,1778398350000,-250.0,0.0003,7]
[421978247,1778398350000,-49756.13,0.000301,7]
[421978248,1778398350000,-36180.67310436,0.00030129,7]
[421978249,1778398350000,-14050.68416575,0.0003013,2]
[421978250,1778398350000,-204.61879094,0.0003013,2]
[421978251,1778398350000,-202.66433152,0.0003013,5]
[421978252,1778398350000,-81060.16686431,0.0003013,7]
[421978242,1778398350000,-7573.0767516,0.0003,2]
[421978228,1778398350000,-150.0,0.00029775,2]
[421978229,1778398350000,-180.0,0.00029775,2]
[421978226,1778398350000,-150.0,0.00029775,2]
[421978208,1778398350000,-500.0,0.0002937,2]
[421978213,1778398350000,-500.0,0.0002937,2]
[421978209,1778398350000,-500.0,0.0002937,2]
[421978214,1778398350000,-500.0,0.0002937,2]
[421978207,1778398350000,-500.0,0.0002937,2]
[421978210,1778398350000,-500.0,0.0002937,2]
[421978206,1778398350000,-151.76,0.00029352,7]
[421978216,1778398350000,-394.0,0.0002937,2]
[421978222,1778398350000,-174.28,0.00029699,2]
[421978212,1778398350000,-500.0,0.0002937,2]
[421978218,1778398350000,-298.25,0.00029525,2]
[421978220,1778398350000,-150.0,0.00029601,2]
[421978219,1778398350000,-808.83,0.000296,14]
[421978231,1778398350000,-150.0,0.000298,7]
[421978227,1778398350000,-150.0,0.00029775,2]
[421978223,1778398350000,-150.0,0.00029775,2]
[421978230,1778398350000,-160.17,0.000298,7]
[421978221,1778398350000,-500.0,0.0002961,7]
[421978224,1778398350000,-150.0,0.00029775,2]
[421978225,1778398350000,-150.0,0.00029775,2]